fUST/lending_fUST_20250916
["ID","MTS","AMOUNT","RATE_DAILY","PERIOD"]
[385770869,1758030665359,-1497.24,0.00024109,3]
[385770871,1758030665369,-5933.45,0.00024109,3]
[385770873,1758030665378,-480.0,0.00024109,3]
[385770875,1758030665387,-480.0,0.00024109,3]
[385770882,1758030665397,-480.0,0.00024109,3]
[385770885,1758030665469,-480.0,0.00024109,3]
[385770887,1758030665479,-5000.0,0.00024235,2]
[385770889,1758030665488,-720.0,0.00024274,20]
[385770891,1758030665498,-155.81781823,0.00024361,7]
[385770893,1758030665507,-2500.0,0.00024364,2]
[385770895,1758030665517,-2500.0,0.00024364,2]
[385770897,1758030665527,-2500.0,0.00024364,2]
[385770899,1758030665535,-2500.0,0.00024364,2]
[385770901,1758030665545,-957.0,0.00024383,2]
[385770903,1758030665555,-630.18,0.00024383,3]
[385770905,1758030665564,-620.94663024,0.00024383,3]
[385770907,1758030665573,-353.19982665,0.00024383,3]
[385770909,1758030665583,-180.19,0.00024383,3]
[385770911,1758030665600,-480.0,0.00024383,3]
[385770913,1758030665610,-480.0,0.00024383,3]
[385770915,1758030665620,-678.09,0.00024383,3]
[385770917,1758030665629,-480.0,0.00024383,3]
[385770919,1758030665639,-480.0,0.00024383,3]
[385770921,1758030665649,-1029.08,0.00024383,3]
[385770923,1758030665659,-480.0,0.00024383,3]
[385770925,1758030665668,-480.0,0.00024383,3]
[385770927,1758030665678,-2458.14,0.00024383,3]
[385770929,1758030665688,-480.0,0.00024383,3]
[385770931,1758030665698,-480.0,0.00024383,3]
[385770933,1758030665709,-480.0,0.00024383,3]
[385770935,1758030665718,-480.0,0.00024383,3]
[385770937,1758030665727,-2790.16,0.00024383,3]
[385770939,1758030665737,-1044.2,0.00024383,3]
[385770941,1758030665747,-768.31,0.00024383,3]
[385770943,1758030665756,-480.0,0.00024383,3]
[385770945,1758030665766,-524.05,0.00024383,3]
[385770947,1758030665776,-1117.99,0.00024383,3]
[385770949,1758030665786,-2396.2,0.00024383,3]
[385770951,1758030665796,-480.0,0.00024383,3]
[385770953,1758030665806,-480.0,0.00024383,3]
[385770955,1758030665816,-733.19,0.00024383,3]
[385770957,1758030665826,-745.47,0.00024383,3]
[385770959,1758030665840,-480.0,0.00024383,3]
[385770961,1758030665852,-480.0,0.00024383,3]
[385770963,1758030665861,-1343.81,0.00024383,3]
[385770965,1758030665871,-480.0,0.00024383,3]
[385770967,1758030665881,-421.94,0.00024383,2]
[385770969,1758030665891,-1344.4,0.00024383,3]
[385770971,1758030665905,-890.7,0.00024383,3]
[385770973,1758030665915,-400.87256208,0.00024383,3]
[385770975,1758030665925,-3211.8,0.00024383,3]
[385770977,1758030665935,-2880.53,0.00024383,3]
[385770979,1758030665945,-480.0,0.00024383,3]
[385770981,1758030665955,-201.52,0.00024383,3]
[385770983,1758030665964,-480.0,0.00024383,3]
[385770985,1758030665973,-1473.01,0.00024383,3]
[385770987,1758030665983,-480.0,0.00024383,3]
[385770989,1758030665994,-12165.76,0.00024383,3]
[385770991,1758030666003,-480.0,0.00024383,3]
[385770993,1758030666012,-480.0,0.00024383,3]
[385770995,1758030666022,-1705.22,0.00024383,3]
[385770997,1758030666031,-480.0,0.00024383,3]
[385770999,1758030666041,-615.27,0.00024383,3]
[385771001,1758030666050,-480.0,0.00024383,3]
[385771003,1758030666059,-474.44,0.00024383,3]
[385771005,1758030666069,-480.0,0.00024383,3]
[385771007,1758030666078,-480.0,0.00024383,3]
[385771009,1758030666093,-480.0,0.00024383,3]
[385771011,1758030666103,-1156.04,0.00024383,3]
[385771013,1758030666112,-480.0,0.00024383,3]
[385771015,1758030666122,-503.91,0.00024383,3]
[385771017,1758030666131,-885.31,0.00024383,3]
[385771019,1758030666141,-480.0,0.00024383,3]
[385771022,1758030666150,-480.0,0.00024383,3]
[385771024,1758030666160,-1262.43,0.00024383,3]
[385771025,1758030666169,-570.5,0.00024383,3]
[385771028,1758030666179,-994.13,0.00024383,3]
[385771029,1758030666189,-480.0,0.00024383,3]
[385771032,1758030666198,-807.99,0.00024383,3]
[385771034,1758030666208,-480.0,0.00024383,3]
[385771036,1758030666218,-1497.24,0.00024383,3]
[385771037,1758030666227,-5933.45,0.00024383,3]
[385771039,1758030666237,-480.0,0.00024383,3]
[385771041,1758030666246,-480.0,0.00024383,3]
[385771043,1758030666256,-480.0,0.00024383,3]
[385771045,1758030666265,-480.0,0.00024383,3]
[385771046,1758030666275,-3000.0,0.00024412,2]
[385771048,1758030666284,-3000.0,0.00024412,2]
[385771050,1758030666293,-35640.49,0.000246,7]
[385771051,1758030666303,-650.0,0.000246,7]
[385771053,1758030666312,-160.0,0.000246,7]
[385771054,1758030666321,-460.0,0.00024647,2]
[385771056,1758030666331,-4096.69853937,0.0002465,2]
[385771057,1758030666345,-957.0,0.00024657,2]
[385771059,1758030666355,-200.0,0.00024657,2]
[385771060,1758030666363,-200.0,0.00024657,5]
[385771062,1758030666373,-630.18,0.00024657,3]
[385771063,1758030666382,-480.0,0.00024657,3]
[385771065,1758030666392,-480.0,0.00024657,3]
[385771066,1758030666401,-678.09,0.00024657,3]
[385771068,1758030666411,-480.0,0.00024657,3]
[385771069,1758030666420,-480.0,0.00024657,3]
[385771071,1758030666430,-1029.08,0.00024657,3]
[385771072,1758030666439,-480.0,0.00024657,3]
[385771074,1758030666450,-555.83,0.00024657,3]
[385771076,1758030666459,-2458.14,0.00024657,3]
[385771077,1758030666468,-480.0,0.00024657,3]
[385771079,1758030666478,-480.0,0.00024657,3]
[385771080,1758030666488,-480.0,0.00024657,3]
[385771082,1758030666497,-203.61,0.00024657,3]
[385771084,1758030666507,-2790.16,0.00024657,3]
[385771085,1758030666517,-1044.2,0.00024657,3]
[385771087,1758030666526,-768.31,0.00024657,3]
[385771088,1758030666536,-480.0,0.00024657,3]
[385771090,1758030666546,-524.05,0.00024657,3]
[385771092,1758030666555,-1117.99,0.00024657,3]
[385771093,1758030666565,-2396.2,0.00024657,3]
[385771095,1758030666575,-480.0,0.00024657,3]
[385771097,1758030666589,-480.0,0.00024657,3]
[385771098,1758030666599,-733.19,0.00024657,3]
[385771100,1758030666608,-745.47,0.00024657,3]
[385771101,1758030666618,-480.0,0.00024657,3]
[385771103,1758030666627,-480.0,0.00024657,3]
[385771105,1758030666637,-1343.81,0.00024657,3]
[385771106,1758030666647,-480.0,0.00024657,3]
[385771108,1758030666656,-1344.4,0.00024657,3]
[385771110,1758030666666,-890.7,0.00024657,3]
[385771111,1758030666675,-3211.8,0.00024657,3]
[385771113,1758030666685,-2880.53,0.00024657,3]
[385771115,1758030666695,-583.89,0.00024657,3]
[385771116,1758030666705,-480.0,0.00024657,3]
[385771118,1758030666715,-1473.01,0.00024657,3]
[385771120,1758030666726,-480.0,0.00024657,3]
[385771121,1758030666736,-12165.76,0.00024657,3]
[385771123,1758030666746,-480.0,0.00024657,3]
[385771125,1758030666755,-480.0,0.00024657,3]
[385771126,1758030666765,-1705.22,0.00024657,3]
[385771128,1758030666775,-480.0,0.00024657,3]
[385771129,1758030666784,-480.0,0.00024657,3]
[385771131,1758030666794,-480.0,0.00024657,3]
[385771133,1758030666805,-480.0,0.00024657,3]
[385771135,1758030666819,-211.67,0.00024657,3]
[385771136,1758030666829,-1156.04,0.00024657,3]
[385771138,1758030666843,-480.0,0.00024657,3]
[385771139,1758030666852,-885.31,0.00024657,3]
[385771141,1758030666862,-480.0,0.00024657,3]
[385771143,1758030666871,-480.0,0.00024657,3]
[385771144,1758030666881,-570.5,0.00024657,3]
[385771146,1758030666891,-1262.43,0.00024657,3]
[385771148,1758030666902,-994.13,0.00024657,3]
[385771149,1758030666912,-480.0,0.00024657,3]
[385771151,1758030666925,-807.99,0.00024657,3]
[385771153,1758030666935,-480.0,0.00024657,3]
[385771154,1758030666945,-1497.24,0.00024657,3]
[385771156,1758030666955,-5933.45,0.00024657,3]
[385771157,1758030666964,-480.0,0.00024657,3]
[385771159,1758030666974,-480.0,0.00024657,3]
[385771161,1758030666983,-620.38,0.00024657,3]
[385771162,1758030666992,-480.0,0.00024657,3]
[385771164,1758030667002,-150.0,0.00024658,2]
[385771166,1758030667013,-280.0,0.00024658,2]
[385771167,1758030667022,-153.84875193,0.00024658,2]
[385771169,1758030667032,-500.0,0.00024658,2]
[385771170,1758030667041,-761.15,0.000247,7]
[385771172,1758030667051,-26323.61,0.000247,2]
[385771174,1758030667060,-500.0,0.0002475,2]
[385771175,1758030667070,-3064.949,0.0002475,2]
[385771177,1758030667080,-334.07773287,0.00024896,2]
[385771178,1758030667094,-246197.71578898,0.000249,2]
[385771180,1758030667110,-8960.68495441,0.000249,2]
[385773809,1758030790527,278.39811087,0.000199,2]
[385773810,1758030852660,4061.47045632,0.00020526,2]
[385773811,1758030890693,3971.25173495,0.00020526,2]
[385773812,1758030890717,1028.74826505,0.00020526,2]
[385773815,1758030918489,5000.0,0.00020526,2]
[385773816,1758030940544,156.424879,0.0002745,30]
[385773817,1758030942446,3971.26173495,0.00020526,2]
[385773818,1758030942470,1028.73826505,0.00020526,2]
[385773819,1758030966720,5000.0,0.00020526,2]
[385773820,1758030972034,569.23660023,0.000199,2]
[385773821,1758030990488,3402.03513472,0.00020526,2]
[385773822,1758030990512,1597.96486528,0.00020526,2]
[385773823,1758031013555,705.75291149,0.00020526,2]
[385773825,1758031063608,7696.29222323,0.00020458,2]
[385773826,1758031063633,7674.52046847,0.00020458,2]
[385773827,1758031079765,2325.48953153,0.00020526,2]
[385773828,1758031079789,2674.51046847,0.00020526,2]
[385773829,1758031088328,5000.0,0.00020526,2]
[385773830,1758031097606,2325.49953153,0.00020526,2]
[385773831,1758031097629,424.27185072,0.00020526,2]
[385773832,1758031105774,5000.0,0.00020526,2]
[385773833,1758031114531,4575.73814928,0.00020526,2]
[385773834,1758031114555,424.26185072,0.00020526,2]
[385773844,1758031130768,979.67148669,0.00020526,2]
[385773845,1758031139530,2903.28614294,0.00020526,2]
[385773846,1758031157694,601.76458994,0.000199,2]
[385773847,1758031180855,231.7824374,0.00020463,2]
[385773848,1758031247601,480.0,0.00030404,50]
[385773851,1758031273999,4859.24349231,0.00020526,2]
[385773852,1758031274024,140.75650769,0.00020526,2]
[385773854,1758031350492,641.18725322,0.000199,2]
[385773855,1758031351743,9218.06623909,0.00020459,2]
[385773856,1758031351766,781.93376091,0.00020459,2]
[385773857,1758031364922,203.826236,0.00020463,2]
[385773858,1758031424899,4030.3228943,0.00020462,2]
[385773859,1758031496781,1000.0,0.00020455,2]
[385773860,1758031532390,721.33586061,0.000199,2]
[385773861,1758031721709,789.66143138,0.000199,2]
[385773862,1758031725805,875.51264321,0.00020526,2]
[385773863,1758031750078,836.688565,0.00020526,2]
[385773864,1758031773450,747.29215085,0.00020526,2]
[385773865,1758031808900,666.0,0.00020454,2]
[385773928,1758031832350,-291.102722,0.00020846,2]
[385773929,1758031832359,-245.42386633,0.00020847,2]
[385773930,1758031832371,-500.0,0.000209,2]
[385773931,1758031832380,-366.82575698,0.00021149,2]
[385773936,1758031840201,-422.83567423,0.00021149,2]
[385773937,1758031840211,-303.38864505,0.00021473,2]
[385773938,1758031840220,-1023.45266336,0.00021473,2]
[385773939,1758031840229,-1200.0,0.0002149,2]
[385773940,1758031840238,-300.0,0.0002149,2]
[385773941,1758031840247,-300.0,0.0002149,2]
[385773942,1758031840256,-300.0,0.0002149,2]
[385773943,1758031840266,-300.0,0.0002149,2]
[385773944,1758031840275,-1200.0,0.0002149,2]
[385773945,1758031840284,-234.55860156,0.0002149,2]
[385773946,1758031840293,-11755.28150396,0.00021491,2]
[385773947,1758031840302,-268.55,0.00021493,3]
[385773948,1758031840312,-805.7,0.00021493,3]
[385773949,1758031840321,-189.43,0.00021493,10]
[385773950,1758031840330,-157.86,0.00021493,10]
[385773951,1758031840340,-504.86977798,0.00021502,2]
[385773952,1758031840349,-500.0,0.00021502,2]
[385773953,1758031840359,-500.0,0.00021502,2]
[385773954,1758031840368,-500.0,0.00021502,2]
[385773955,1758031840379,-551.35457881,0.00021502,2]
[385773956,1758031840388,-500.0,0.00021502,2]
[385773957,1758031840397,-255.21477526,0.00021502,2]
[385773958,1758031840407,-500.0,0.00021502,2]
[385773959,1758031840416,-401.56130233,0.00021502,2]
[385773960,1758031840425,-500.0,0.00021502,2]
[385773961,1758031840434,-453.0,0.00021502,2]
[385773962,1758031840443,-500.0,0.00021502,2]
[385773963,1758031840452,-500.0,0.00021502,2]
[385773964,1758031840461,-500.92840418,0.00021502,2]
[385773965,1758031840470,-539.78653345,0.00021502,2]
[385773966,1758031840479,-282.15249941,0.00021502,2]
[385773967,1758031840488,-539.78653345,0.00021502,2]
[385773968,1758031840497,-539.78653345,0.00021502,2]
[385773969,1758031840506,-539.78653345,0.00021502,2]
[385773970,1758031840515,-539.78653345,0.00021502,2]
[385773971,1758031840524,-539.78653345,0.00021502,2]
[385773972,1758031840533,-539.78653345,0.00021502,2]
[385773973,1758031840542,-539.78653345,0.00021502,2]
[385773974,1758031840551,-539.78653345,0.00021502,2]
[385773975,1758031840560,-539.78653345,0.00021502,2]
[385773976,1758031840569,-539.78653345,0.00021502,2]
[385773977,1758031840579,-539.78653345,0.00021502,2]
[385773978,1758031840588,-539.78653345,0.00021502,2]
[385773979,1758031840597,-539.78653345,0.00021502,2]
[385773980,1758031840606,-539.78653345,0.00021502,2]
[385773981,1758031840616,-539.78653345,0.00021502,2]
[385773982,1758031840629,-539.78653345,0.00021502,2]
[385773983,1758031840638,-539.78653345,0.00021502,2]
[385773984,1758031840647,-539.78653345,0.00021502,2]
[385773985,1758031840656,-539.78653345,0.00021502,2]
[385773986,1758031840665,-12530.7867384,0.00021503,2]
[385773987,1758031840676,-2390.665,0.00021503,2]
[385773988,1758031840692,-355078.5482616,0.00021503,2]
[385773989,1758031840701,-500.0,0.00021573,2]
[385773990,1758031840711,-500.0,0.00021573,2]
[385773991,1758031840720,-500.0,0.00021573,2]
[385773992,1758031840729,-500.0,0.00021573,2]
[385773993,1758031840739,-500.51836084,0.00021573,2]
[385773994,1758031840748,-500.0,0.00021573,2]
[385773995,1758031840757,-158.99970614,0.00021573,2]
[385773996,1758031840766,-505.18312314,0.00021573,2]
[385773997,1758031840775,-500.0,0.00021573,2]
[385773998,1758031840785,-500.0,0.00021573,2]
[385773999,1758031840795,-500.0,0.00021573,2]
[385774000,1758031840804,-500.0,0.00021573,2]
[385774001,1758031840813,-500.0,0.00021573,2]
[385774002,1758031840822,-500.0,0.00021573,2]
[385774003,1758031840832,-480.0,0.00021602,7]
[385774004,1758031840841,-160.0,0.00021848,2]
[385774005,1758031840851,-233.29513139,0.00021849,2]
[385774006,1758031840860,-160.0,0.00021849,2]
[385774007,1758031840871,-160.0,0.00021849,2]
[385774008,1758031840882,-217.86301978,0.00021849,2]
[385774009,1758031840892,-160.0,0.00021849,2]
[385774010,1758031840901,-847.61663983,0.00021857,2]
[385774011,1758031840910,-160.0,0.00021857,2]
[385774012,1758031840921,-303.38864503,0.00021902,2]
[385774013,1758031840930,-480.0,0.00021917,2]
[385774014,1758031840939,-557.08766036,0.00021917,2]
[385774015,1758031840951,-480.0,0.00021917,2]
[385774016,1758031840961,-480.0,0.00021917,2]
[385774017,1758031840970,-482.15790531,0.00021917,2]
[385774018,1758031840979,-480.0,0.00021917,2]
[385774019,1758031840989,-480.0,0.00021917,2]
[385774020,1758031841000,-480.92493767,0.00021917,2]
[385774021,1758031841009,-480.0,0.00021917,2]
[385774022,1758031841018,-480.0,0.00021917,2]
[385774023,1758031841027,-494.12578261,0.00021917,2]
[385774024,1758031841037,-480.0,0.00021917,2]
[385774025,1758031841046,-480.0,0.00021917,2]
[385774026,1758031841057,-621.06,0.00021917,2]
[385774027,1758031841068,-481.65378629,0.00021917,2]
[385774028,1758031841077,-480.0,0.00021917,2]
[385774029,1758031841086,-480.0,0.00021917,2]
[385774030,1758031841099,-480.0,0.00021917,2]
[385774031,1758031841108,-480.0,0.00021917,2]
[385774032,1758031841117,-484.62335311,0.00021917,2]
[385774033,1758031841127,-480.0,0.00021917,2]
[385774034,1758031841137,-480.0,0.00021917,2]
[385774035,1758031841146,-480.0,0.00021917,2]
[385774036,1758031841155,-480.0,0.00021917,2]
[385774037,1758031841164,-480.0,0.00021917,2]
[385774038,1758031841173,-264.08202645,0.00021917,2]
[385774039,1758031841185,-217.50100791,0.00021917,2]
[385774040,1758031841195,-480.0,0.00021917,2]
[385774041,1758031841204,-480.0,0.00021917,2]
[385774042,1758031841213,-480.0,0.00021917,2]
[385774043,1758031841222,-480.0,0.00021917,2]
[385774044,1758031841232,-480.0,0.00021917,2]
[385774045,1758031841241,-480.0,0.00021917,2]
[385774046,1758031841250,-480.0,0.00021917,2]
[385774047,1758031841259,-500.0,0.00021917,2]
[385774048,1758031841268,-500.0,0.00021917,2]
[385774049,1758031841277,-500.0,0.00021917,2]
[385774050,1758031841286,-500.0,0.00021917,2]
[385774051,1758031841296,-500.0,0.00021917,2]
[385774052,1758031841305,-500.0,0.00021917,2]
[385774053,1758031841314,-316.96453978,0.00021917,2]
[385774054,1758031841323,-480.0,0.00021917,2]
[385774055,1758031841332,-480.0,0.00021917,2]
[385774056,1758031841341,-480.0,0.00021917,2]
[385774057,1758031841350,-480.0,0.00021917,2]
[385774058,1758031841360,-485.35226245,0.00021917,2]
[385774059,1758031841370,-480.0,0.00021917,2]
[385774060,1758031841379,-480.0,0.00021917,2]
[385774061,1758031841388,-480.0,0.00021917,2]
[385774062,1758031841397,-480.0,0.00021917,2]
[385774063,1758031841406,-480.0,0.00021917,2]
[385774064,1758031841415,-480.0,0.00021917,2]
[385774065,1758031841426,-480.0,0.00021917,2]
[385774066,1758031841435,-480.0,0.00021917,2]
[385774067,1758031841445,-481.59823953,0.00021917,2]
[385774068,1758031841454,-480.0,0.00021917,2]
[385774069,1758031841463,-480.0,0.00021917,2]
[385774070,1758031841472,-480.0,0.00021917,2]
[385774071,1758031841482,-504.8440215,0.00021917,2]
[385774072,1758031841491,-550.89078202,0.00021917,2]
[385774073,1758031841500,-487.66748101,0.00021917,2]
[385774074,1758031841647,-480.0,0.00021917,2]
[385774075,1758031841657,-480.0,0.00021917,2]
[385774076,1758031841667,-480.0,0.00021917,2]
[385774077,1758031841677,-480.0,0.00021917,2]
[385774078,1758031841686,-480.0,0.00021917,2]
[385774079,1758031841696,-480.0,0.00021917,2]
[385774080,1758031841706,-480.0,0.00021917,2]
[385774081,1758031841716,-480.0,0.00021917,2]
[385774082,1758031841726,-480.0,0.00021917,2]
[385774083,1758031841735,-480.0,0.00021917,2]
[385774084,1758031841744,-480.0,0.00021917,2]
[385774085,1758031841754,-480.0,0.00021917,2]
[385774086,1758031841764,-480.0,0.00021917,2]
[385774087,1758031841774,-480.0,0.00021917,2]
[385774088,1758031841784,-480.0,0.00021917,2]
[385774089,1758031841794,-539.57150584,0.00021917,2]
[385774090,1758031841803,-502.46215697,0.00021917,2]
[385774091,1758031841813,-480.0,0.00021917,2]
[385774092,1758031841822,-480.0,0.00021917,2]
[385774093,1758031841832,-480.0,0.00021917,2]
[385774094,1758031841841,-480.0,0.00021917,2]
[385774095,1758031841850,-480.0,0.00021917,2]
[385774096,1758031841859,-480.0,0.00021917,2]
[385774097,1758031841871,-480.0,0.00021917,2]
[385774098,1758031841881,-480.0,0.00021917,2]
[385774099,1758031841890,-480.0,0.00021917,2]
[385774100,1758031841900,-480.0,0.00021917,2]
[385774101,1758031841909,-480.0,0.00021917,2]
[385774102,1758031841919,-480.0,0.00021917,2]
[385774103,1758031841929,-480.0,0.00021917,2]
[385774104,1758031841938,-480.0,0.00021917,2]
[385774105,1758031841947,-480.0,0.00021917,2]
[385774106,1758031841957,-480.0,0.00021917,2]
[385774107,1758031841967,-480.0,0.00021917,2]
[385774108,1758031841976,-292.17509038,0.00021917,2]
[385774109,1758031841986,-480.0,0.00021917,2]
[385774110,1758031841996,-480.0,0.00021917,2]
[385774111,1758031842006,-481.98048085,0.00021917,2]
[385774112,1758031842016,-480.0,0.00021917,2]
[385774113,1758031842026,-480.0,0.00021917,2]
[385774114,1758031842036,-480.0,0.00021917,2]
[385774115,1758031842046,-481.69700407,0.00021917,2]
[385774116,1758031842056,-480.0,0.00021917,2]
[385774117,1758031842065,-480.0,0.00021917,2]
[385774118,1758031842075,-480.0,0.00021917,2]
[385774119,1758031842084,-485.16867631,0.00021917,2]
[385774120,1758031842093,-480.0,0.00021917,2]
[385774121,1758031842103,-480.0,0.00021917,2]
[385774122,1758031842112,-480.16290007,0.00021917,2]
[385774123,1758031842122,-480.0,0.00021917,2]
[385774124,1758031842131,-480.0,0.00021917,2]
[385774125,1758031842141,-480.0,0.00021917,2]
[385774126,1758031842151,-480.0,0.00021917,2]
[385774127,1758031842161,-480.0,0.00021917,2]
[385774128,1758031842170,-480.0,0.00021917,2]
[385774129,1758031842179,-480.0,0.00021917,2]
[385774130,1758031842188,-480.0,0.00021917,2]
[385774131,1758031842198,-480.0,0.00021917,2]
[385774132,1758031842207,-480.0,0.00021917,2]
[385774133,1758031842217,-481.48814344,0.00021917,2]
[385774134,1758031842226,-480.0,0.00021917,2]
[385774135,1758031842235,-480.0,0.00021917,2]
[385774136,1758031842245,-480.0,0.00021917,2]
[385774137,1758031842254,-480.0,0.00021917,2]
[385774138,1758031842264,-480.0,0.00021917,2]
[385774139,1758031842275,-480.0,0.00021917,2]
[385774140,1758031842284,-480.0,0.00021917,2]
[385774141,1758031842294,-480.0,0.00021917,2]
[385774142,1758031842304,-480.0,0.00021917,2]
[385774143,1758031842313,-481.6415138,0.00021917,2]
[385774144,1758031842322,-480.0,0.00021917,2]
[385774145,1758031842331,-483.24849934,0.00021917,2]
[385774146,1758031842341,-480.0,0.00021917,2]
[385774147,1758031842350,-480.0,0.00021917,2]
[385774148,1758031842359,-480.0,0.00021917,2]
[385774149,1758031842368,-480.0,0.00021917,2]
[385774150,1758031842378,-480.0,0.00021917,2]
[385774151,1758031842387,-480.0,0.00021917,2]
[385774152,1758031842396,-480.0,0.00021917,2]
[385774153,1758031842406,-482.72194978,0.00021917,2]
[385774154,1758031842415,-483.91717172,0.00021917,2]
[385774155,1758031842424,-523.96551373,0.00021917,2]
[385774156,1758031842433,-480.0,0.00021917,2]
[385774157,1758031842442,-480.0,0.00021917,2]
[385774158,1758031842452,-480.0,0.00021917,2]
[385774159,1758031842461,-480.0,0.00021917,2]
[385774160,1758031842470,-266.37037483,0.00021917,2]
[385774161,1758031842479,-278.29296045,0.00021917,2]
[385774162,1758031842488,-480.0,0.00021917,2]
[385774163,1758031842498,-480.0,0.00021917,2]
[385774164,1758031842507,-480.0,0.00021917,2]
[385774165,1758031842516,-481.67101693,0.00021917,2]
[385774166,1758031842526,-480.0,0.00021917,2]
[385774167,1758031842536,-480.0,0.00021917,2]
[385774168,1758031842545,-480.0,0.00021917,2]
[385774169,1758031842554,-480.0,0.00021917,2]
[385774170,1758031842564,-480.0,0.00021917,2]
[385774171,1758031842574,-481.73123488,0.00021917,2]
[385774172,1758031842583,-480.0,0.00021917,2]
[385774173,1758031842592,-480.0,0.00021917,2]
[385774174,1758031842601,-480.0,0.00021917,2]
[385774175,1758031842610,-480.0,0.00021917,2]
[385774176,1758031842621,-480.0,0.00021917,2]
[385774177,1758031842631,-480.0,0.00021917,2]
[385774178,1758031842641,-372.94888828,0.00021917,2]
[385774180,1758031842650,-480.0,0.00021917,2]
[385774182,1758031842659,-480.0,0.00021917,2]
[385774184,1758031842669,-480.0,0.00021917,2]
[385774186,1758031842678,-621.35,0.00021917,2]
[385774187,1758031842688,-480.0,0.00021917,2]
[385774188,1758031842697,-480.0,0.00021917,2]
[385774190,1758031842706,-480.0,0.00021917,2]
[385774192,1758031842715,-482.02299581,0.00021917,2]
[385774193,1758031842725,-480.0,0.00021917,2]
[385774194,1758031842735,-480.0,0.00021917,2]
[385774195,1758031842744,-480.0,0.00021917,2]
[385774196,1758031842754,-480.0,0.00021917,2]
[385774198,1758031842764,-480.0,0.00021917,2]
[385774200,1758031842773,-195.82313024,0.00021917,2]
[385774201,1758031842782,-480.0,0.00021917,2]
[385774202,1758031842791,-480.0,0.00021917,2]
[385774203,1758031842800,-480.0,0.00021917,2]
[385774204,1758031842809,-480.0,0.00021917,2]
[385774205,1758031842819,-480.0,0.00021917,2]
[385774206,1758031842829,-480.0,0.00021917,2]
[385774207,1758031842838,-480.0,0.00021917,2]
[385774208,1758031842847,-480.0,0.00021917,2]
[385774209,1758031842856,-480.0,0.00021917,2]
[385774210,1758031842867,-480.0,0.00021917,2]
[385774211,1758031842880,-480.0,0.00021917,2]
[385774212,1758031842889,-480.0,0.00021917,2]
[385774213,1758031842899,-480.0,0.00021917,2]
[385774214,1758031842909,-480.0,0.00021917,2]
[385774215,1758031842918,-480.0,0.00021917,2]
[385774216,1758031842928,-480.0,0.00021917,2]
[385774218,1758031842937,-480.0,0.00021917,2]
[385774220,1758031842947,-480.0,0.00021917,2]
[385774222,1758031842957,-480.0,0.00021917,2]
[385774224,1758031842966,-480.0,0.00021917,2]
[385774226,1758031842975,-480.0,0.00021917,2]
[385774228,1758031842985,-480.0,0.00021917,2]
[385774230,1758031842994,-481.28929548,0.00021917,2]
[385774232,1758031843003,-480.0,0.00021917,2]
[385774234,1758031843013,-480.0,0.00021917,2]
[385774236,1758031843022,-480.0,0.00021917,2]
[385774238,1758031843032,-480.0,0.00021917,2]